fUST/lending_fUST_20240427
["ID","MTS","AMOUNT","RATE_DAILY","PERIOD"]
[323669876,1714153847149,-500.0,0.00041369,7]
[323669877,1714153847159,-500.0,0.00041369,7]
[323669878,1714153847169,-500.0,0.00041369,7]
[323669879,1714153847179,-500.0,0.00041369,7]
[323669880,1714153847189,-500.0,0.00041369,7]
[323669881,1714153847199,-500.0,0.00041369,7]
[323669882,1714153847208,-2110.86,0.00041369,7]
[323669883,1714153847217,-500.2686494,0.00041369,7]
[323669884,1714153847227,-500.0,0.00041369,7]
[323669885,1714153847237,-500.0,0.00041369,7]
[323669886,1714153847246,-1449.43,0.00041369,7]
[323669887,1714153847256,-500.0,0.00041369,7]
[323669888,1714153847266,-500.0,0.00041369,7]
[323669889,1714153847275,-500.0,0.00041369,7]
[323669890,1714153847285,-660.54,0.00041369,7]
[323669891,1714153847295,-500.0,0.00041369,7]
[323669892,1714153847304,-500.0,0.00041369,7]
[323669893,1714153847313,-500.0,0.00041369,7]
[323669894,1714153847323,-995.43,0.00041642,7]
[323669895,1714153847333,-995.43,0.00041642,7]
[323669896,1714153847343,-995.43,0.00041642,7]
[323669897,1714153847354,-500.0,0.00041643,7]
[323669898,1714153847364,-500.0,0.00041643,7]
[323669899,1714153847374,-500.0,0.00041643,7]
[323669900,1714153847383,-500.0,0.00041643,7]
[323669901,1714153847392,-500.0,0.00041643,7]
[323669902,1714153847402,-408.05397281,0.00041643,7]
[323669903,1714153847411,-500.0,0.00041643,7]
[323669904,1714153847421,-500.0,0.00041643,7]
[323669905,1714153847431,-500.0,0.00041643,7]
[323669906,1714153847440,-500.0,0.00041643,7]
[323669907,1714153847450,-500.0,0.00041643,7]
[323669908,1714153847460,-500.0,0.00041643,7]
[323669909,1714153847469,-500.0,0.00041643,7]
[323669910,1714153847479,-500.0,0.00041643,7]
[323669911,1714153847488,-501.3647645,0.00041643,7]
[323669912,1714153847497,-500.0,0.00041643,7]
[323669913,1714153847508,-500.0,0.00041643,7]
[323669914,1714153847518,-500.0,0.00041643,7]
[323669915,1714153847528,-500.0,0.00041643,7]
[323669916,1714153847537,-1476.03,0.00041643,7]
[323669917,1714153847546,-504.71460083,0.00041643,7]
[323669918,1714153847556,-382.04546151,0.00041643,7]
[323669919,1714153847566,-500.0,0.00041643,7]
[323669920,1714153847575,-1794.57,0.00041643,7]
[323669921,1714153847585,-385.573883,0.00041643,2]
[323669922,1714153847594,-500.0,0.00041643,7]
[323669923,1714153847604,-500.0,0.00041643,7]
[323669924,1714153847613,-500.0,0.00041643,7]
[323669925,1714153847623,-500.0,0.00041643,7]
[323669926,1714153847632,-245.91409472,0.00041643,7]
[323669927,1714153847642,-500.0,0.00041643,7]
[323669928,1714153847651,-500.0,0.00041643,120]
[323669929,1714153847661,-749.88,0.00041643,7]
[323669930,1714153847670,-1510.31,0.00041643,7]
[323669931,1714153847680,-500.0,0.00041643,7]
[323669932,1714153847689,-500.0,0.00041643,7]
[323669934,1714153847699,-500.0,0.00041643,7]
[323669936,1714153847708,-500.0,0.00041643,7]
[323669938,1714153847717,-500.0,0.00041643,7]
[323669939,1714153847726,-500.0,0.00041643,7]
[323669940,1714153847736,-501.2852392,0.00041643,7]
[323669942,1714153847745,-500.0,0.00041643,7]
[323669943,1714153847755,-500.0,0.00041643,7]
[323669945,1714153847765,-510.18,0.00041643,7]
[323669947,1714153847775,-500.0,0.00041643,7]
[323669949,1714153847789,-500.0,0.00041643,7]
[323669951,1714153847799,-501.89213492,0.00041643,7]
[323669953,1714153847809,-500.0,0.00041643,7]
[323669955,1714153847818,-500.0,0.00041643,7]
[323669957,1714153847829,-500.0,0.00041643,7]
[323669959,1714153847838,-500.0,0.00041643,7]
[323669961,1714153847848,-500.0,0.00041643,7]
[323669963,1714153847859,-500.0,0.00041643,7]
[323669964,1714153847997,-500.0,0.00041643,7]
[323669965,1714153848008,-500.0,0.00041643,7]
[323669966,1714153848017,-500.80059606,0.00041643,7]
[323669967,1714153848027,-500.0,0.00041643,7]
[323669968,1714153848037,-500.0,0.00041643,7]
[323669969,1714153848048,-503.03902389,0.00041643,7]
[323669970,1714153848058,-500.0,0.00041643,7]
[323669971,1714153848067,-500.0,0.00041643,7]
[323669972,1714153848077,-500.0,0.00041643,7]
[323669973,1714153848087,-500.0,0.00041643,7]
[323669974,1714153848096,-500.0,0.00041643,7]
[323669975,1714153848106,-500.0,0.00041643,7]
[323669976,1714153848116,-500.0,0.00041643,7]
[323669977,1714153848126,-500.0,0.00041643,7]
[323669978,1714153848135,-500.0,0.00041643,7]
[323669979,1714153848145,-500.0,0.00041643,7]
[323669980,1714153848155,-500.0,0.00041643,7]
[323669981,1714153848165,-500.0,0.00041643,7]
[323669982,1714153848174,-500.0,0.00041643,7]
[323669983,1714153848184,-500.0,0.00041643,7]
[323669984,1714153848193,-613.7,0.00041643,7]
[323669985,1714153848212,-500.0,0.00041643,7]
[323669986,1714153848233,-1796.33,0.00041643,7]
[323669987,1714153848256,-500.0,0.00041643,7]
[323669988,1714153848277,-500.0,0.00041643,7]
[323669989,1714153848300,-500.0,0.00041643,7]
[323669990,1714153848324,-500.0,0.00041643,7]
[323669991,1714153848345,-1747.75,0.00041643,7]
[323669992,1714153848363,-500.0,0.00041643,7]
[323669993,1714153848373,-269.79518254,0.00041643,7]
[323669994,1714153848382,-500.0,0.00041643,7]
[323669995,1714153848392,-508.82,0.00041643,7]
[323669996,1714153848402,-500.0,0.00041643,7]
[323669997,1714153848411,-500.0,0.00041643,7]
[323669998,1714153848422,-500.0,0.00041643,7]
[323669999,1714153848431,-500.0,0.00041643,7]
[323670000,1714153848441,-500.0,0.00041643,7]
[323670001,1714153848450,-500.0,0.00041643,7]
[323670002,1714153848460,-500.0,0.00041643,7]
[323670003,1714153848469,-500.0,0.00041643,7]
[323670004,1714153848478,-1783.72,0.00041643,7]
[323670005,1714153848488,-500.0,0.00041643,7]
[323670006,1714153848497,-561.19,0.00041643,30]
[323670007,1714153848507,-500.0,0.00041643,7]
[323670008,1714153848517,-500.0,0.00041643,7]
[323670009,1714153848526,-500.0,0.00041643,7]
[323670010,1714153848535,-500.0,0.00041643,7]
[323670011,1714153848545,-500.0,0.00041643,7]
[323670012,1714153848555,-500.0,0.00041643,7]
[323670013,1714153848564,-500.0,0.00041643,7]
[323670014,1714153848575,-500.0,0.00041643,7]
[323670015,1714153848584,-500.0,0.00041643,7]
[323670016,1714153848594,-500.0,0.00041643,7]
[323670017,1714153848604,-500.0,0.00041643,7]
[323670018,1714153848613,-989.27,0.00041643,7]
[323670019,1714153848623,-424.27240412,0.00041643,7]
[323670029,1714154660102,4978.08356064,0.000266,120]
[323670031,1714154754169,-154.84515485,0.00019171,2]
[323670032,1714154754188,-158.79873753,0.00019171,2]
[323670033,1714154754206,-154.84515485,0.00019171,2]
[323670034,1714154754225,-1394.99883848,0.00019171,2]
[323670035,1714154754244,-354.89338741,0.00019172,2]
[323670036,1714154754264,-459.88228259,0.00019172,2]
[323670037,1714154754284,-16019.55156952,0.00019177,2]
[323670038,1714154754303,-154.84515485,0.000266,2]
[323670039,1714154754322,-284.90230402,0.000266,2]
[323670040,1714154754341,-1130.62575072,0.00028,4]
[323670041,1714154754360,-767.86268077,0.00036984,30]
[323670042,1714154754379,-166.666666,0.00037852,2]
[323670043,1714154754398,-570.4305627,0.00038573,2]
[323670044,1714154754418,-161.75681759,0.00039971,2]
[323670045,1714154754437,-154.55046747,0.00039971,9]
[323670046,1714154754457,-24900.0,0.00039971,2]
[323670047,1714154754477,-246.57261833,0.00039999,31]
[323670048,1714154754497,-500.0,0.00039999,31]
[323670049,1714154754517,-188.89646249,0.00040838,2]
[323670050,1714154754537,-509.1979406,0.00040995,2]
[323670051,1714154754556,-509.19794059,0.00041064,2]
[323670052,1714154754575,-250.98,0.00041085,3]
[323670053,1714154754593,-429.76,0.00041085,3]
[323670054,1714154754612,-358.13,0.00041085,3]
[323670055,1714154754631,-298.44,0.00041085,3]
[323670056,1714154754649,-248.7,0.00041085,3]
[323670057,1714154754668,-193.63179074,0.00041093,4]
[323670058,1714154754687,-157.79100369,0.00041093,4]
[323670059,1714154754706,-154.87609912,0.00041093,4]
[323670060,1714154754725,-521.62660451,0.00041094,4]
[323670061,1714154754744,-500.0,0.00041094,31]
[323670062,1714154754763,-500.0,0.00041094,31]
[323670063,1714154754785,-500.0,0.00041094,31]
[323670064,1714154754804,-500.0,0.00041094,31]
[323670065,1714154754962,-500.0,0.00041094,31]
[323670066,1714154754982,-500.0,0.00041094,31]
[323670067,1714154755001,-500.0,0.00041094,31]
[323670068,1714154755020,-500.0,0.00041094,31]
[323670069,1714154755042,-500.0,0.00041094,31]
[323670070,1714154755063,-500.0,0.00041094,31]
[323670071,1714154755083,-500.0,0.00041094,31]
[323670072,1714154755106,-219.15356494,0.00041094,31]
[323670073,1714154755127,-500.0,0.00041094,31]
[323670074,1714154755147,-500.0,0.00041094,31]
[323670075,1714154755169,-500.0,0.00041095,7]
[323670076,1714154755188,-500.0,0.00041095,7]
[323670077,1714154755206,-500.0,0.00041095,7]
[323670078,1714154755226,-500.0,0.00041095,7]
[323670079,1714154755246,-500.0,0.00041095,7]
[323670080,1714154755266,-500.0,0.00041095,7]
[323670081,1714154755285,-500.0,0.00041095,7]
[323670082,1714154755303,-500.0,0.00041095,7]
[323670083,1714154755323,-1291.53,0.00041095,7]
[323670084,1714154755342,-500.0,0.00041095,7]
[323670085,1714154755361,-500.0,0.00041095,7]
[323670086,1714154755380,-500.0,0.00041095,7]
[323670087,1714154755400,-500.0,0.00041095,7]
[323670088,1714154755418,-501.61004104,0.00041095,7]
[323670089,1714154755438,-500.0,0.00041095,7]
[323670090,1714154755457,-500.0,0.00041095,7]
[323670091,1714154755476,-656.15,0.00041095,7]
[323670092,1714154755495,-501.60769789,0.00041095,7]
[323670093,1714154755514,-500.0,0.00041095,7]
[323670094,1714154755534,-500.0,0.00041095,7]
[323670095,1714154755553,-500.0,0.00041095,7]
[323670096,1714154755572,-500.71848926,0.00041095,7]
[323670097,1714154755591,-500.0,0.00041095,7]
[323670098,1714154755610,-500.0,0.00041095,7]
[323670099,1714154755630,-500.71934863,0.00041095,7]
[323670100,1714154755649,-500.0,0.00041095,7]
[323670101,1714154755670,-500.0,0.00041095,7]
[323670102,1714154755689,-500.0,0.00041095,7]
[323670103,1714154755709,-394.62532144,0.00041095,7]
[323670293,1714155038331,-155.41136776,0.000266,2]
[323670296,1714155038342,-243.83683305,0.0004008,4]
[323670298,1714155038351,-154.84515485,0.0004008,4]
[323670300,1714155038361,-452.73376433,0.00040081,2]
[323670361,1714155038944,-13305.73261888,0.00040081,2]
[323670496,1714155040564,-11141.53361679,0.00040081,2]
[323670498,1714155040576,-154.55046741,0.00040895,10]
[323670500,1714155040584,-609.70444385,0.00040995,2]
[323670502,1714155040593,-4000.0,0.00041,14]
[323670504,1714155040603,-609.70444382,0.00041064,2]
[323670506,1714155040612,-207.25,0.00041085,3]
[323670508,1714155040622,-1394.37638584,0.00041093,4]
[323670510,1714155040631,-7622.8384032,0.00041093,2]
[323670512,1714155040640,-3561.87667284,0.00041094,2]
[323670513,1714155040649,-459.67881521,0.00041094,4]
[323670514,1714155040658,-154.87609603,0.00041094,4]
[323670517,1714155040668,-355.47034627,0.00041094,4]
[323670520,1714155040677,-105.37467856,0.00041095,7]
[323670523,1714155040686,-500.0,0.00041095,7]
[323670525,1714155040695,-500.0,0.00041095,7]
[323670527,1714155040704,-500.0,0.00041095,7]
[323670529,1714155040713,-500.0,0.00041095,7]
[323670531,1714155040722,-500.0,0.00041095,7]
[323670533,1714155040731,-500.0,0.00041095,7]
[323670535,1714155040740,-500.0,0.00041095,7]
[323670537,1714155040749,-501.62222181,0.00041095,7]
[323670539,1714155040757,-500.0,0.00041095,7]
[323670541,1714155040766,-500.0,0.00041095,7]
[323670542,1714155040776,-500.0,0.00041095,7]
[323670544,1714155040785,-500.0,0.00041095,7]
[323670546,1714155040794,-500.0,0.00041095,7]
[323670548,1714155040803,-500.0,0.00041095,7]
[323670550,1714155040811,-500.0,0.00041095,7]
[323670552,1714155040820,-500.0,0.00041095,7]
[323670554,1714155040829,-500.0,0.00041095,7]
[323670556,1714155040838,-560.59486518,0.00041095,7]
[323670558,1714155040846,-500.0,0.00041095,7]
[323670560,1714155040855,-500.0,0.00041095,7]
[323670562,1714155040864,-500.0,0.00041095,7]
[323670564,1714155040873,-500.0,0.00041095,7]
[323670565,1714155040882,-500.0,0.00041095,7]
[323670567,1714155040891,-500.0,0.00041095,7]
[323670569,1714155040900,-500.00998423,0.00041095,7]
[323670571,1714155040909,-1529.28,0.00041095,7]
[323670572,1714155040918,-500.0,0.00041095,7]
[323670574,1714155040927,-1571.79,0.00041095,7]
[323670575,1714155040936,-500.0,0.00041095,7]
[323670577,1714155040945,-500.0,0.00041095,7]
[323670579,1714155040954,-500.0,0.00041095,7]
[323670581,1714155040964,-500.0,0.00041095,7]
[323670583,1714155040973,-500.0,0.00041095,7]
[323670585,1714155040982,-500.0,0.00041095,7]
[323670587,1714155040991,-500.0,0.00041095,7]
[323670589,1714155041000,-500.0,0.00041095,7]
[323670591,1714155041009,-500.0,0.00041095,7]
[323670592,1714155041018,-500.0,0.00041095,7]
[323670593,1714155041027,-500.0,0.00041095,7]
[323670594,1714155041037,-452.86212643,0.00041095,7]
[323670595,1714155041045,-500.0,0.00041095,7]
[323670596,1714155041055,-500.0,0.00041095,7]
[323670597,1714155041064,-500.0,0.00041095,7]
[323670598,1714155041073,-500.0,0.00041095,7]
[323670599,1714155041082,-660.94,0.00041095,7]
[323670600,1714155041092,-660.94,0.00041095,7]
[323670601,1714155041101,-660.94,0.00041095,7]
[323670602,1714155041112,-660.94,0.00041095,7]
[323670603,1714155041124,-660.94,0.00041095,7]
[323670604,1714155041134,-500.0,0.00041095,7]
[323670605,1714155041143,-660.94,0.00041095,7]
[323670606,1714155041152,-660.94,0.00041095,7]
[323670607,1714155041162,-660.94,0.00041095,7]
[323670608,1714155041171,-1560.76,0.00041095,7]
[323670609,1714155041180,-500.0,0.00041095,7]
[323670610,1714155041190,-500.0,0.00041095,7]
[323670611,1714155041200,-500.0,0.00041095,7]
[323670612,1714155041209,-500.0,0.00041095,7]
[323670613,1714155041218,-500.0,0.00041095,7]
[323670614,1714155041227,-500.0,0.00041095,7]
[323670615,1714155041236,-500.0,0.00041095,7]
[323670616,1714155041245,-500.0,0.00041095,7]
[323670617,1714155041254,-500.0,0.00041095,120]
[323670618,1714155041264,-500.0,0.00041095,7]
[323670619,1714155041273,-500.0,0.00041095,7]
[323670620,1714155041284,-500.0,0.00041095,30]
[323670621,1714155041295,-1570.25,0.00041095,7]
[323670622,1714155041304,-500.0,0.00041095,7]
[323670623,1714155041313,-634.46210224,0.00041095,7]
[323670624,1714155041323,-500.0,0.00041095,7]
[323670625,1714155041331,-500.0,0.00041095,7]
[323670626,1714155041340,-1321.52,0.00041095,7]
[323670627,1714155041349,-645.44512134,0.00041095,7]
[323670628,1714155041359,-500.0,0.00041095,7]
[323670629,1714155041368,-500.0,0.00041095,7]
[323670630,1714155041377,-500.0,0.00041095,7]
[323670631,1714155041387,-800.55,0.00041095,7]
[323670633,1714155041396,-500.0,0.00041095,7]
[323670635,1714155041405,-342.0,0.00041095,7]
[323670637,1714155041414,-500.0,0.00041095,7]
[323670639,1714155041424,-536.99,0.00041095,7]
[323670641,1714155041433,-500.0,0.00041095,7]
[323670642,1714155041442,-500.0,0.00041095,7]
[323670643,1714155041451,-500.0,0.00041095,7]
[323670645,1714155041461,-500.0,0.00041095,7]
[323670646,1714155041470,-500.0,0.00041095,7]
[323670647,1714155041479,-500.0,0.00041095,7]
[323670649,1714155041488,-500.0,0.00041095,7]
[323670651,1714155041497,-500.0,0.00041095,7]
[323670653,1714155041506,-500.0,0.00041095,7]
[323670655,1714155041515,-500.0,0.00041095,7]
[323670657,1714155041524,-500.0,0.00041095,7]
[323670659,1714155041533,-500.0,0.00041095,7]
[323670660,1714155041542,-500.0,0.00041095,7]
[323670662,1714155041552,-500.0,0.00041095,7]
[323670664,1714155041562,-500.0,0.00041095,7]
[323670665,1714155041572,-865.61,0.00041095,7]
[323670666,1714155041581,-500.0,0.00041095,7]
[323670667,1714155041590,-500.0,0.00041095,7]
[323670668,1714155041599,-500.0,0.00041095,7]
[323670669,1714155041608,-500.0,0.00041095,7]
[323670670,1714155041617,-500.0,0.00041095,7]
[323670671,1714155041624,-500.0,0.00041095,7]
[323670672,1714155041632,-500.0,0.00041095,7]
[323670673,1714155041641,-500.0,0.00041095,7]
[323670674,1714155041650,-605.5,0.00041095,7]
[323670675,1714155041659,-500.0,0.00041095,7]
[323670676,1714155041669,-437.46994859,0.00041095,2]
[323670677,1714155041678,-500.0,0.00041095,7]
[323670678,1714155041687,-1144.04,0.00041095,7]
[323670679,1714155041696,-500.0,0.00041095,7]
[323670680,1714155041705,-500.0,0.00041095,7]
[323670681,1714155041714,-500.0,0.00041095,7]
[323670682,1714155041723,-852.66,0.00041095,7]
[323670683,1714155041732,-1010.65,0.00041095,7]
[323670684,1714155041741,-377.36496334,0.00041095,7]
[323670685,1714155041750,-2175.64,0.00041095,7]
[323670686,1714155041759,-500.0,0.00041095,7]
[323670687,1714155041769,-500.0,0.00041095,7]
[323670688,1714155041778,-500.0,0.00041095,7]
[323670689,1714155041787,-500.0,0.00041095,7]
[323670690,1714155041796,-500.0,0.00041095,7]
[323670691,1714155041806,-500.0,0.00041095,7]
[323670692,1714155041816,-3301.11,0.00041095,7]
[323670693,1714155041825,-1838.34,0.00041095,7]
[323670694,1714155041834,-500.0,0.00041095,7]
[323670695,1714155041843,-500.0,0.00041095,7]
[323670696,1714155041852,-500.0,0.00041095,7]
[323670697,1714155041861,-500.0,0.00041095,7]
[323670698,1714155041870,-4787.08,0.00041095,7]
[323670699,1714155041879,-500.0,0.00041095,7]
[323670700,1714155041888,-2565.43,0.00041095,7]
[323670701,1714155041897,-500.0,0.00041095,7]
[323670703,1714155041906,-500.0,0.00041095,7]
[323670705,1714155041915,-500.0,0.00041095,7]
[323670707,1714155041925,-3778.53,0.00041095,7]
[323670709,1714155041934,-500.0,0.00041095,7]
[323670711,1714155041943,-500.0,0.00041095,7]
[323670713,1714155041952,-588.59,0.00041095,7]
[323670714,1714155041962,-508.01462536,0.00041095,7]
[323670715,1714155041972,-500.0,0.00041095,7]
[323670716,1714155041980,-500.0,0.00041095,7]
[323670717,1714155041989,-500.0,0.00041095,7]
[323670718,1714155041999,-500.0,0.00041095,7]
[323670719,1714155042008,-423.2534934,0.00041095,7]
[323670720,1714155042017,-500.0,0.00041095,7]
[323670721,1714155042026,-1934.96,0.00041095,7]
[323670722,1714155042035,-500.0,0.00041095,7]
[323670723,1714155042045,-500.0,0.00041095,7]
[323670724,1714155042054,-500.0,0.00041095,7]
[323670725,1714155042063,-1328.65,0.00041095,7]
[323670726,1714155042072,-500.0,0.00041095,7]
[323670727,1714155042212,-502.79151828,0.00041095,7]
[323670728,1714155042221,-500.0,0.00041095,7]
[323670729,1714155042230,-500.0,0.00041095,7]
[323670730,1714155042240,-500.0,0.00041095,7]
[323670731,1714155042249,-500.0,0.00041095,7]
[323670732,1714155042258,-500.0,0.00041095,7]
[323670733,1714155042267,-499.1934814,0.00041095,7]
[323671047,1714155600708,300.0,0.00014728,2]
[323671048,1714155601391,420.0,0.00016201,2]
[323671049,1714155602037,180.0,0.00017821,2]
[323671076,1714155688358,284.90230402,0.00017821,2]
[323671078,1714155704298,284.90230402,0.00017821,2]
[323671090,1714155730289,30.19539196,0.00017821,2]
[323671091,1714155730320,254.70691206,0.00017821,2]
[323671093,1714155744295,284.90230402,0.00017821,2]
[323671100,1714155766301,284.90230402,0.00017821,2]
[323671107,1714155782300,284.90230402,0.00017821,2]
[323671110,1714155804308,284.90230402,0.00017821,2]
[323671119,1714155822313,359.83734514,0.00017821,2]
[323671121,1714155841418,300.0,0.00014728,2]
[323671122,1714155842164,420.0,0.00016123,2]
[323671123,1714155842918,587.0,0.00017651,2]
[323671133,1714155934192,-203.92354638,0.0001932,2]
[323671134,1714155934212,-158.79873753,0.00027395,2]
[323671135,1714155934233,-165.036821,0.00027397,2]
[323671136,1714155934253,-166.666666,0.00039118,2]
[323671137,1714155934271,-154.55046741,0.00039958,9]
[323671138,1714155934292,-550.0,0.00040056,3]
[323671139,1714155934313,-493.0,0.00040056,5]
[323671140,1714155934333,-11178.08525975,0.00040057,2]
[323671141,1714156054107,-544.94186167,0.00040053,4]
[323671142,1714156054128,-243.83683305,0.00040054,4]
[323671143,1714156054150,-350.0,0.00040056,3]
[323671144,1714156054171,-13420.07453989,0.00040057,2]
[323671145,1714156054194,-24900.0,0.00040058,2]
[323671146,1714156054216,-510.66119162,0.00040894,2]
[323671147,1714156054238,-510.66119161,0.00040919,2]
[323671148,1714156054259,-510.66119161,0.00040944,2]
[323671149,1714156054279,-510.66119161,0.00040969,2]
[323671150,1714156054303,-510.66119161,0.00040994,2]
[323671151,1714156054325,-44444.0,0.00040995,5]
[323671152,1714156054347,-172.71,0.00041083,3]
[323671153,1714156054368,-1129.1939092,0.00041092,4]
[323671154,1714156054392,-472.01022916,0.00041093,4]
[323671155,1714156054415,-4003.69821638,0.00041093,2]
[323671170,1714156232374,-213.35722892,0.00039891,4]
[323671171,1714156232383,-364.64280785,0.00039892,4]
[323671234,1714156238435,-112.18132111,0.00039892,4]
[323671236,1714156238445,-166.666666,0.00039893,2]
[323671237,1714156238454,-154.55046741,0.00039995,9]
[323671239,1714156238463,-23.53646248,0.00040094,2]
[323671242,1714156238480,-6593.55140271,0.00040094,2]
[323671251,1714156238559,-1452.22905534,0.00040094,2]
[323671441,1714156240617,-16528.84287911,0.00040094,2]
[323671443,1714156240626,-24900.0,0.00040095,2]
[323671445,1714156240637,-159.12676125,0.00040894,2]
[323671447,1714156240646,-159.12676125,0.00040914,2]
[323671449,1714156240655,-159.12676125,0.00040934,2]
[323671451,1714156240665,-159.12676125,0.00040954,2]
[323671453,1714156240674,-159.12676125,0.00040974,2]
[323671457,1714156240694,-44444.0,0.00040993,5]
[323671460,1714156240704,-159.12676125,0.00040994,2]
[323671463,1714156240713,-863.58,0.00041083,3]
[323671466,1714156240723,-3864.34039672,0.00041093,2]
[323671469,1714156240732,-549.6120096,0.00041093,4]
[323671472,1714156240741,-351216.79826086,0.00041093,4]
[323671477,1714156240755,-58821.84478534,0.00041093,4]
[323671480,1714156240765,-1584.73200106,0.00041094,4]
[323671483,1714156240774,-500.0,0.00041095,7]
[323671486,1714156240783,-500.0,0.00041095,7]
[323671489,1714156240792,-500.0,0.00041095,7]
[323671492,1714156240802,-500.0,0.00041095,7]
[323671495,1714156240812,-500.0,0.00041095,7]
[323671498,1714156240822,-500.0,0.00041095,7]
[323671501,1714156240831,-500.0,0.00041095,7]
[323671503,1714156240840,-500.0,0.00041095,7]
[323671505,1714156240850,-767.2,0.00041095,7]
[323671507,1714156240859,-500.0,0.00041095,7]
[323671509,1714156240868,-560.9806629,0.00041095,7]
[323671511,1714156240878,-500.0,0.00041095,7]
[323671513,1714156240887,-500.0,0.00041095,7]
[323671515,1714156240896,-500.0,0.00041095,7]
[323671517,1714156240906,-500.0,0.00041095,7]
[323671519,1714156240915,-500.0,0.00041095,7]
[323671521,1714156240924,-500.0,0.00041095,7]
[323671523,1714156240933,-500.0,0.00041095,7]
[323671525,1714156240943,-154.86062544,0.00041095,7]
[323671527,1714156240952,-500.0,0.00041095,7]
[323671529,1714156240961,-500.0,0.00041095,120]
[323671531,1714156240970,-500.0,0.00041095,7]
[323671533,1714156240980,-500.0,0.00041095,7]
[323671535,1714156240989,-500.0,0.00041095,7]
[323671537,1714156240999,-1504.82,0.00041095,7]
[323671539,1714156241009,-1266.46,0.00041095,7]
[323671541,1714156241018,-500.0,0.00041095,7]
[323671543,1714156241027,-500.0,0.00041095,7]
[323671545,1714156241036,-500.0,0.00041095,7]
[323671547,1714156241046,-500.0,0.00041095,7]
[323671549,1714156241054,-467.30346091,0.00041095,7]
[323671551,1714156241064,-514.62,0.00041095,7]
[323671553,1714156241073,-500.0,0.00041095,7]
[323671555,1714156241083,-500.0,0.00041095,7]
[323671557,1714156241092,-500.0,0.00041095,7]
[323671559,1714156241101,-500.0,0.00041095,7]
[323671561,1714156241110,-500.0,0.00041095,7]
[323671563,1714156241119,-500.0,0.00041095,7]
[323671565,1714156241130,-500.0,0.00041095,7]
[323671567,1714156241139,-500.0,0.00041095,7]
[323671569,1714156241150,-500.0,0.00041095,7]
[323671571,1714156241160,-500.0,0.00041095,7]
[323671573,1714156241169,-500.0,0.00041095,7]
[323671575,1714156241179,-500.0,0.00041095,7]
[323671577,1714156241189,-500.0,0.00041095,7]
[323671579,1714156241199,-500.0,0.00041095,7]
[323671581,1714156241208,-829.54,0.00041095,7]
[323671583,1714156241217,-500.0,0.00041095,7]
[323671585,1714156241227,-1237.72,0.00041095,7]
[323671587,1714156241236,-500.0,0.00041095,7]
[323671589,1714156241245,-500.0,0.00041095,7]
[323671591,1714156241254,-500.0,0.00041095,7]
[323671593,1714156241263,-500.0,0.00041095,7]
[323671595,1714156241273,-479.19706986,0.00041095,7]
[323671597,1714156241283,-230.51609416,0.00041095,7]
[323671599,1714156241292,-500.0,0.00041095,7]
[323671601,1714156241302,-500.0,0.00041095,7]
[323671603,1714156241314,-500.0,0.00041095,7]